[Event "Open international de Salon de Provence"]
[Site "Salon de Provence, France"]
[Date "2024.07.12"]
[Round "9.1"]
[White "Durand-Benmoussa, Roman"]
[Black "Gusain, Himal"]
[Result "0-1"]
[WhiteElo "2001"]
[BlackElo "2490"]
[PlyCount "68"]
[EventDate "2024.??.??"]
[TimeControl "1"]

1. e4 {[%emt 0:00:00]} c5 {[%emt 0:00:00]} 2. Nf3 {[%emt 0:00:00]} e6 {[%emt 0:
00:00]} 3. d4 {[%emt 0:00:00]} cxd4 {[%emt 0:00:00]} 4. Nxd4 {[%emt 0:00:00]}
Nf6 {[%emt 0:00:00]} 5. Nc3 {[%emt 0:00:00]} Bb4 {[%emt 0:00:00]} 6. e5 {
[%emt 0:00:00]} Nd5 {[%emt 0:00:00]} 7. Bd2 {[%emt 0:00:00]} Nxc3 {[%emt 0:00:
00]} 8. bxc3 {[%emt 0:00:00]} Bf8 {[%emt 0:00:00]} 9. Bd3 {[%emt 0:00:00]} Na6
{[%emt 0:00:00]} 10. f4 {[%emt 0:00:00]} Nc5 {[%emt 0:00:00]} 11. O-O {[%emt 0:
00:00]} d6 {[%emt 0:00:00]} 12. Qf3 {[%emt 0:00:00]} g6 {[%emt 0:00:00]} 13.
Nb5 {[%emt 0:00:00]} d5 {[%emt 0:00:00]} 14. Rae1 {[%emt 0:00:00]} a6 {[%emt 0:
00:00]} 15. f5 {[%emt 0:00:00]} gxf5 {[%emt 0:00:00]} 16. Nd6+ {[%emt 0:00:00]}
Bxd6 {[%emt 0:00:00]} 17. exd6 {[%emt 0:00:00]} Qb6 {[%emt 0:00:00]} 18. Kh1 {
[%emt 0:00:00]} Bd7 {[%emt 0:00:00]} 19. Bg5 {[%emt 0:00:00]} Qxd6 {[%emt 0:00:
00]} 20. Qxf5 {[%emt 0:00:00]} Rf8 {[%emt 0:00:00]} 21. Qxh7 {[%emt 0:00:00]}
Bb5 {[%emt 0:00:00]} 22. Rxf7 {[%emt 0:00:00]} Rxf7 {[%emt 0:00:00]} 23. Bg6 {
[%emt 0:00:00]} Qf8 {[%emt 0:00:00]} 24. Re3 {[%emt 0:00:00]} Ne4 {[%emt 0:00:
00]} 25. Bh6 {[%emt 0:00:00]} Qe7 {[%emt 0:00:00]} 26. Rf3 {[%emt 0:00:00]}
O-O-O {[%emt 0:00:00]} 27. Qxf7 {[%emt 0:00:00]} Qh4 {[%emt 0:00:00]} 28. c4 {
[%emt 0:00:00]} Be8 {[%emt 0:00:00]} 29. Qxe6+ {[%emt 0:00:00]} Bd7 {[%emt 0:
00:00]} 30. Qf7 {[%emt 0:00:00]} Qxh6 {[%emt 0:00:00]} 31. cxd5 {[%emt 0:00:00]
} Ng3+ {[%emt 0:00:00]} 32. Kg1 {[%emt 0:00:00]} Qc1+ {[%emt 0:00:00]} 33. Kf2
{[%emt 0:00:00]} Nh1+ {[%emt 0:00:00]} 34. Ke2 {[%emt 0:00:00]} Bb5+ {[%emt 0:
00:00]} 0-1

[Event "Open international de Salon de Provence"]
[Site "Salon de Provence, France"]
[Date "2024.07.12"]
[Round "9.2"]
[White "Dimitrov, Radoslav"]
[Black "Nikolov, Momchil"]
[Result "1/2-1/2"]
[WhiteElo "2480"]
[BlackElo "2460"]
[PlyCount "43"]
[EventDate "2024.??.??"]
[TimeControl "1"]

1. e4 {[%emt 0:00:00]} c5 {[%emt 0:00:00]} 2. Nf3 {[%emt 0:00:00]} e6 {[%emt 0:
00:00]} 3. d4 {[%emt 0:00:00]} cxd4 {[%emt 0:00:00]} 4. Nxd4 {[%emt 0:00:00]}
Nf6 {[%emt 0:00:00]} 5. Nc3 {[%emt 0:00:00]} Nc6 {[%emt 0:00:00]} 6. Nxc6 {
[%emt 0:00:00]} bxc6 {[%emt 0:00:00]} 7. e5 {[%emt 0:00:00]} Nd5 {[%emt 0:00:
00]} 8. Ne4 {[%emt 0:00:00]} Qc7 {[%emt 0:00:00]} 9. f4 {[%emt 0:00:00]} Qb6 {
[%emt 0:00:00]} 10. c4 {[%emt 0:00:00]} Ne3 {[%emt 0:00:00]} 11. Qd3 {[%emt 0:
00:00]} Bb4+ {[%emt 0:00:00]} 12. Bd2 {[%emt 0:00:00]} Ba6 {[%emt 0:00:00]} 13.
b3 {[%emt 0:00:00]} O-O {[%emt 0:00:00]} 14. Nc3 {[%emt 0:00:00]} Nd5 {[%emt 0:
00:00]} 15. O-O-O {[%emt 0:00:00]} Qa5 {[%emt 0:00:00]} 16. Kb2 {[%emt 0:00:00]
} f6 {[%emt 0:00:00]} 17. Qg3 {[%emt 0:00:00]} Nxc3 {[%emt 0:00:00]} 18. Bxc3 {
[%emt 0:00:00]} Qa3+ {[%emt 0:00:00]} 19. Kb1 {[%emt 0:00:00]} Bxc3 {[%emt 0:
00:00]} 20. Qxc3 {[%emt 0:00:00]} Bc8 {[%emt 0:00:00]} 21. Bd3 {[%emt 0:00:00]}
a5 {[%emt 0:00:00]} 22. Qc2 {[%emt 0:00:00]} 1/2-1/2

[Event "Open international de Salon de Provence"]
[Site "Salon de Provence, France"]
[Date "2024.07.12"]
[Round "9.3"]
[White "Lalic, Bogdan"]
[Black "Enchev, Ivajlo"]
[Result "1/2-1/2"]
[WhiteElo "2358"]
[BlackElo "2416"]
[PlyCount "43"]
[EventDate "2024.??.??"]
[TimeControl "1"]

1. d4 {[%emt 0:00:00]} d5 {[%emt 0:00:00]} 2. c4 {[%emt 0:00:00]} c6 {[%emt 0:
00:00]} 3. cxd5 {[%emt 0:00:00]} cxd5 {[%emt 0:00:00]} 4. Nf3 {[%emt 0:00:00]}
Nf6 {[%emt 0:00:00]} 5. Nc3 {[%emt 0:00:00]} Nc6 {[%emt 0:00:00]} 6. Bf4 {
[%emt 0:00:00]} Bf5 {[%emt 0:00:00]} 7. e3 {[%emt 0:00:00]} e6 {[%emt 0:00:00]}
8. Bd3 {[%emt 0:00:00]} Bxd3 {[%emt 0:00:00]} 9. Qxd3 {[%emt 0:00:00]} Bd6 {
[%emt 0:00:00]} 10. Bxd6 {[%emt 0:00:00]} Qxd6 {[%emt 0:00:00]} 11. O-O {
[%emt 0:00:00]} O-O {[%emt 0:00:00]} 12. Rfc1 {[%emt 0:00:00]} Rfc8 {[%emt 0:
00:00]} 13. a3 {[%emt 0:00:00]} Nd7 {[%emt 0:00:00]} 14. Rc2 {[%emt 0:00:00]}
Ne7 {[%emt 0:00:00]} 15. Rac1 {[%emt 0:00:00]} a6 {[%emt 0:00:00]} 16. Ne2 {
[%emt 0:00:00]} Rxc2 {[%emt 0:00:00]} 17. Rxc2 {[%emt 0:00:00]} Rc8 {[%emt 0:
00:00]} 18. Rxc8+ {[%emt 0:00:00]} Nxc8 {[%emt 0:00:00]} 19. Qc2 {[%emt 0:00:
00]} Ne7 {[%emt 0:00:00]} 20. h3 {[%emt 0:00:00]} h6 {[%emt 0:00:00]} 21. Nd2 {
[%emt 0:00:00]} Nc6 {[%emt 0:00:00]} 22. b4 {[%emt 0:00:00]} 1/2-1/2

[Event "Open international de Salon de Provence"]
[Site "Salon de Provence, France"]
[Date "2024.07.12"]
[Round "9.4"]
[White "Philippe, Guillaume"]
[Black "Espanet, Fabien"]
[Result "1-0"]
[WhiteElo "2359"]
[BlackElo "1851"]
[PlyCount "107"]
[EventDate "2024.??.??"]
[TimeControl "1"]

1. e4 {[%emt 0:00:00]} c5 {[%emt 0:00:00]} 2. a3 {[%emt 0:00:00]} g6 {[%emt 0:
00:00]} 3. Nc3 {[%emt 0:00:00]} Bg7 {[%emt 0:00:00]} 4. Bc4 {[%emt 0:00:00]}
Nc6 {[%emt 0:00:00]} 5. d3 {[%emt 0:00:00]} a6 {[%emt 0:00:00]} 6. Ba2 {
[%emt 0:00:00]} b5 {[%emt 0:00:00]} 7. f4 {[%emt 0:00:00]} e6 {[%emt 0:00:00]}
8. Nf3 {[%emt 0:00:00]} Nge7 {[%emt 0:00:00]} 9. O-O {[%emt 0:00:00]} Bb7 {
[%emt 0:00:00]} 10. f5 {[%emt 0:00:00]} gxf5 {[%emt 0:00:00]} 11. Ng5 {[%emt 0:
00:00]} Ne5 {[%emt 0:00:00]} 12. Qh5 {[%emt 0:00:00]} Qb6 {[%emt 0:00:00]} 13.
exf5 {[%emt 0:00:00]} c4+ {[%emt 0:00:00]} 14. Kh1 {[%emt 0:00:00]} Nxf5 {
[%emt 0:00:00]} 15. dxc4 {[%emt 0:00:00]} bxc4 {[%emt 0:00:00]} 16. Bf4 {
[%emt 0:00:00]} h6 {[%emt 0:00:00]} 17. Nge4 {[%emt 0:00:00]} d5 {[%emt 0:00:
00]} 18. Ng3 {[%emt 0:00:00]} Nxg3+ {[%emt 0:00:00]} 19. Bxg3 {[%emt 0:00:00]}
Ng6 {[%emt 0:00:00]} 20. Ne2 {[%emt 0:00:00]} O-O {[%emt 0:00:00]} 21. c3 {
[%emt 0:00:00]} e5 {[%emt 0:00:00]} 22. Rae1 {[%emt 0:00:00]} Rae8 {[%emt 0:00:
00]} 23. Bf2 {[%emt 0:00:00]} Qc6 {[%emt 0:00:00]} 24. Rg1 {[%emt 0:00:00]} Ba8
{[%emt 0:00:00]} 25. Rd1 {[%emt 0:00:00]} Rb8 {[%emt 0:00:00]} 26. Rd2 {
[%emt 0:00:00]} a5 {[%emt 0:00:00]} 27. Be3 {[%emt 0:00:00]} Ne7 {[%emt 0:00:
00]} 28. Bb1 {[%emt 0:00:00]} f5 {[%emt 0:00:00]} 29. Qh4 {[%emt 0:00:00]} Rf7
{[%emt 0:00:00]} 30. Bf2 {[%emt 0:00:00]} f4 {[%emt 0:00:00]} 31. Qh5 {[%emt 0:
00:00]} Rbf8 {[%emt 0:00:00]} 32. Bh4 {[%emt 0:00:00]} Nf5 {[%emt 0:00:00]} 33.
Bf2 {[%emt 0:00:00]} a4 {[%emt 0:00:00]} 34. Qh3 {[%emt 0:00:00]} Ne7 {[%emt 0:
00:00]} 35. Nc1 {[%emt 0:00:00]} Qf6 {[%emt 0:00:00]} 36. Bh4 {[%emt 0:00:00]}
Qc6 {[%emt 0:00:00]} 37. Na2 {[%emt 0:00:00]} f3 {[%emt 0:00:00]} 38. Nb4 {
[%emt 0:00:00]} fxg2+ {[%emt 0:00:00]} 39. Rdxg2 {[%emt 0:00:00]} Qb7 {[%emt 0:
00:00]} 40. Bxe7 {[%emt 0:00:00]} Rxe7 {[%emt 0:00:00]} 41. Qxh6 {[%emt 0:00:
00]} d4 {[%emt 0:00:00]} 42. Qh7+ {[%emt 0:00:00]} Kf7 {[%emt 0:00:00]} 43.
Qxg7+ {[%emt 0:00:00]} Ke8 {[%emt 0:02:14]} 44. Bg6+ {[%emt 0:00:00]} Ref7 {
[%emt 0:00:00]} 45. Qxe5+ {[%emt 0:00:00]} Kd8 {[%emt 0:00:00]} 46. Bxf7 {
[%emt 0:00:00]} Rxf7 {[%emt 0:00:00]} 47. Qxd4+ {[%emt 0:00:00]} Ke8 {[%emt 0:
00:00]} 48. h3 {[%emt 0:00:00]} Rh7 {[%emt 0:00:00]} 49. Qe5+ {[%emt 0:00:00]}
Kf8 {[%emt 0:00:00]} 50. Kh2 {[%emt 0:00:00]} Rxh3+ {[%emt 0:00:00]} 51. Kxh3 {
[%emt 0:00:00]} Qh7+ {[%emt 0:00:00]} 52. Kg3 {[%emt 0:00:00]} Qg6+ {[%emt 0:
00:00]} 53. Kf2 {[%emt 0:00:00]} Qf7+ {[%emt 0:00:00]} 54. Ke1 {[%emt 0:00:00]}
1-0

[Event "Open international de Salon de Provence"]
[Site "Salon de Provence, France"]
[Date "2024.07.12"]
[Round "9.5"]
[White "Rival, None"]
[Black "Belaid, Noa"]
[Result "1/2-1/2"]
[WhiteElo "1640"]
[BlackElo "1594"]
[PlyCount "43"]
[EventDate "2024.??.??"]
[TimeControl "1"]

1. d4 {[%emt 0:00:00]} Nf6 {[%emt 0:00:00]} 2. c4 {[%emt 0:00:00]} g6 {[%emt 0:
00:00]} 3. Nc3 {[%emt 0:00:00]} d5 {[%emt 0:00:00]} 4. cxd5 {[%emt 0:00:00]}
Nxd5 {[%emt 0:00:00]} 5. Bd2 {[%emt 0:00:00]} Bg7 {[%emt 0:00:00]} 6. e4 {
[%emt 0:00:00]} Nxc3 {[%emt 0:00:00]} 7. Bxc3 {[%emt 0:00:00]} O-O {[%emt 0:00:
00]} 8. h3 {[%emt 0:00:00]} Nd7 {[%emt 0:00:00]} 9. Nf3 {[%emt 0:00:00]} Nb6 {
[%emt 0:00:00]} 10. Be2 {[%emt 0:00:00]} Re8 {[%emt 0:00:00]} 11. O-O {[%emt 0:
00:00]} Bd7 {[%emt 0:00:00]} 12. a4 {[%emt 0:00:00]} a5 {[%emt 0:00:00]} 13.
Re1 {[%emt 0:00:00]} e6 {[%emt 0:00:00]} 14. Qc2 {[%emt 0:00:00]} Bc6 {[%emt 0:
00:00]} 15. Bf1 {[%emt 0:00:00]} Qd7 {[%emt 0:00:00]} 16. b3 {[%emt 0:00:00]}
Nc8 {[%emt 0:00:00]} 17. Rad1 {[%emt 0:00:00]} Ne7 {[%emt 0:00:00]} 18. d5 {
[%emt 0:00:00]} exd5 {[%emt 0:00:00]} 19. Bxg7 {[%emt 0:00:00]} Kxg7 {[%emt 0:
00:00]} 20. Qc3+ {[%emt 0:00:00]} Kg8 {[%emt 0:00:00]} 21. Qf6 {[%emt 0:00:50]}
Qe6 {[%emt 0:00:02]} 22. e5 {[%emt 0:00:08]} 1/2-1/2

[Event "Open international de Salon de Provence"]
[Site "Salon de Provence, France"]
[Date "2024.07.12"]
[Round "9.6"]
[White "Tarisse, Mateo"]
[Black "Madi, Chahinez"]
[Result "0-1"]
[WhiteElo "1636"]
[BlackElo "1687"]
[PlyCount "60"]
[EventDate "2024.??.??"]
[TimeControl "1"]

1. Nf3 {[%emt 0:00:00]} Nf6 {[%emt 0:00:00]} 2. c4 {[%emt 0:00:00]} g6 {
[%emt 0:00:00]} 3. d4 {[%emt 0:00:00]} Bg7 {[%emt 0:00:00]} 4. Nc3 {[%emt 0:00:
00]} d6 {[%emt 0:00:00]} 5. e4 {[%emt 0:00:00]} O-O {[%emt 0:00:00]} 6. Be2 {
[%emt 0:00:00]} Nbd7 {[%emt 0:00:00]} 7. O-O {[%emt 0:00:00]} a5 {[%emt 0:00:
00]} 8. h3 {[%emt 0:00:00]} e5 {[%emt 0:00:00]} 9. d5 {[%emt 0:00:00]} Nc5 {
[%emt 0:00:00]} 10. Qc2 {[%emt 0:00:00]} Nh5 {[%emt 0:00:00]} 11. Be3 {[%emt 0:
00:00]} f5 {[%emt 0:00:00]} 12. Bxc5 {[%emt 0:00:00]} dxc5 {[%emt 0:00:00]} 13.
exf5 {[%emt 0:00:00]} Bxf5 {[%emt 0:00:00]} 14. Bd3 {[%emt 0:00:00]} Bxh3 {
[%emt 0:00:00]} 15. Be4 {[%emt 0:00:00]} Bf5 {[%emt 0:00:00]} 16. Bxf5 {
[%emt 0:00:00]} gxf5 {[%emt 0:00:00]} 17. g3 {[%emt 0:00:00]} Ra6 {[%emt 0:00:
00]} 18. Kg2 {[%emt 0:00:00]} Rh6 {[%emt 0:00:00]} 19. Rh1 {[%emt 0:00:00]} e4
{[%emt 0:00:00]} 20. Nh4 {[%emt 0:00:00]} Qg5 {[%emt 0:00:00]} 21. Qc1 {
[%emt 0:00:00]} Qe7 {[%emt 0:00:00]} 22. Qe3 {[%emt 0:00:00]} b6 {[%emt 0:00:
00]} 23. Rab1 {[%emt 0:00:00]} Qf6 {[%emt 0:00:00]} 24. Rbf1 {[%emt 0:00:00]}
Re8 {[%emt 0:08:13]} 25. f4 {[%emt 0:00:00]} Qf7 {[%emt 0:00:00]} 26. b3 {
[%emt 0:00:00]} Bd4 {[%emt 0:00:00]} 27. Qc1 {[%emt 0:00:00]} Nxg3 {[%emt 0:00:
00]} 28. Kxg3 {[%emt 0:00:00]} Qg7+ {[%emt 0:00:00]} 29. Kh3 {[%emt 0:00:00]}
Qg4+ {[%emt 0:00:00]} 30. Kh2 {[%emt 0:00:00]} Rxh4# {[%emt 0:00:00]} 0-1

[Event "Open international de Salon de Provence"]
[Site "Salon de Provence, France"]
[Date "2024.07.12"]
[Round "9.7"]
[White "Gautier Mazauric, Thomas"]
[Black "Bicais, Noam"]
[Result "0-1"]
[WhiteElo "1638"]
[BlackElo "1603"]
[PlyCount "60"]
[EventDate "2024.??.??"]
[TimeControl "1"]

1. e4 {[%emt 0:01:13]} c5 {[%emt 0:00:00]} 2. c3 {[%emt 0:00:00]} d6 {[%emt 0:
00:00]} 3. d4 {[%emt 0:00:00]} cxd4 {[%emt 0:00:00]} 4. cxd4 {[%emt 0:00:00]}
Nf6 {[%emt 0:00:00]} 5. Nc3 {[%emt 0:00:00]} Nc6 {[%emt 0:00:00]} 6. h3 {
[%emt 0:00:00]} e5 {[%emt 0:00:00]} 7. d5 {[%emt 0:00:00]} Ne7 {[%emt 0:00:00]}
8. Be3 {[%emt 0:00:00]} Ng6 {[%emt 0:00:00]} 9. Nf3 {[%emt 0:00:00]} Be7 {
[%emt 0:00:00]} 10. g3 {[%emt 0:00:00]} Nd7 {[%emt 0:00:00]} 11. h4 {[%emt 0:
00:00]} Nb6 {[%emt 0:00:00]} 12. Rc1 {[%emt 0:00:00]} O-O {[%emt 0:00:00]} 13.
Ng5 {[%emt 0:00:00]} f6 {[%emt 0:00:00]} 14. Nxh7 {[%emt 0:00:00]} Kxh7 {
[%emt 0:00:00]} 15. Qh5+ {[%emt 0:00:00]} Kg8 {[%emt 0:00:00]} 16. Qxg6 {
[%emt 0:00:00]} f5 {[%emt 0:00:00]} 17. Bg5 {[%emt 0:00:00]} fxe4 {[%emt 0:00:
00]} 18. Nxe4 {[%emt 0:00:00]} Bxg5 {[%emt 0:00:00]} 19. Nxg5 {[%emt 0:00:00]}
Bf5 {[%emt 0:00:00]} 20. Qh5 {[%emt 0:00:00]} Qf6 {[%emt 0:00:00]} 21. Bh3 {
[%emt 0:07:45]} Qh6 {[%emt 0:00:00]} 22. Qxh6 {[%emt 0:00:00]} gxh6 {[%emt 0:
00:00]} 23. Ne6 {[%emt 0:15:28]} Rfc8 {[%emt 0:00:00]} 24. Nc7 {[%emt 0:00:00]}
Bxh3 {[%emt 0:00:00]} 25. Rxh3 {[%emt 0:00:00]} Nxd5 {[%emt 0:00:00]} 26. Nxa8
{[%emt 0:00:00]} Rxc1+ {[%emt 0:00:00]} 27. Kd2 {[%emt 0:00:00]} Rc8 {[%emt 0:
00:00]} 28. g4 {[%emt 0:00:00]} Rxa8 {[%emt 0:00:00]} 29. Rd3 {[%emt 0:00:00]}
Nf6 {[%emt 0:00:00]} 30. Rxd6 {[%emt 0:00:00]} Ne4+ {[%emt 0:00:00]} 0-1

[Event "Open international de Salon de Provence"]
[Site "Salon de Provence, France"]
[Date "2024.07.12"]
[Round "9.8"]
[White "Metzger, Raphael"]
[Black "Scamaroni, Jean-Paul"]
[Result "1/2-1/2"]
[WhiteElo "1601"]
[BlackElo "1654"]
[PlyCount "130"]
[EventDate "2024.??.??"]
[TimeControl "1"]

1. e4 {[%emt 0:00:00]} c5 {[%emt 0:00:00]} 2. d4 {[%emt 0:00:00]} cxd4 {
[%emt 0:00:00]} 3. c3 {[%emt 0:00:00]} d5 {[%emt 0:00:00]} 4. exd5 {[%emt 0:00:
00]} Qxd5 {[%emt 0:00:00]} 5. cxd4 {[%emt 0:00:00]} Nc6 {[%emt 0:00:00]} 6. Nf3
{[%emt 0:00:00]} e5 {[%emt 0:00:00]} 7. Nc3 {[%emt 0:00:00]} Bb4 {[%emt 0:00:
00]} 8. Bd2 {[%emt 0:00:00]} Bxc3 {[%emt 0:00:00]} 9. Bxc3 {[%emt 0:00:00]} e4
{[%emt 0:00:00]} 10. Ne5 {[%emt 0:00:00]} Nxe5 {[%emt 0:00:00]} 11. dxe5 {
[%emt 0:00:00]} Ne7 {[%emt 0:00:00]} 12. Qxd5 {[%emt 0:00:00]} Nxd5 {[%emt 0:
00:00]} 13. O-O-O {[%emt 0:00:00]} Nxc3 {[%emt 0:00:00]} 14. bxc3 {[%emt 0:00:
00]} O-O {[%emt 0:00:00]} 15. Bb5 {[%emt 0:00:00]} a6 {[%emt 0:00:00]} 16. Bd7
{[%emt 0:00:00]} Rd8 {[%emt 0:00:00]} 17. Bxc8 {[%emt 0:00:00]} Rdxc8 {[%emt 0:
00:00]} 18. Kb2 {[%emt 0:00:00]} Rc5 {[%emt 0:00:00]} 19. Rd7 {[%emt 0:00:00]}
b5 {[%emt 0:00:00]} 20. Rhd1 {[%emt 0:00:00]} Rxe5 {[%emt 0:00:00]} 21. Rd8+ {
[%emt 0:00:00]} Re8 {[%emt 0:00:00]} 22. Rxe8+ {[%emt 0:00:00]} Rxe8 {[%emt 0:
00:00]} 23. Rd6 {[%emt 0:00:00]} Ra8 {[%emt 0:00:00]} 24. Kb3 {[%emt 0:00:00]}
f5 {[%emt 0:00:00]} 25. Kb4 {[%emt 0:00:00]} Kf7 {[%emt 0:00:00]} 26. Kc5 {
[%emt 0:00:00]} Rc8+ {[%emt 0:00:00]} 27. Kd4 {[%emt 0:00:00]} Rc4+ {[%emt 0:
00:00]} 28. Ke5 {[%emt 0:00:00]} Ra4 {[%emt 0:00:00]} 29. Kxf5 {[%emt 0:00:00]}
Rxa2 {[%emt 0:00:00]} 30. Kxe4 {[%emt 0:00:00]} Rxf2 {[%emt 0:00:00]} 31. Rxa6
{[%emt 0:00:00]} Rxg2 {[%emt 0:00:00]} 32. Rb6 {[%emt 0:00:00]} Rg5 {[%emt 0:
00:00]} 33. Ra6 {[%emt 0:00:00]} h6 {[%emt 0:00:00]} 34. Rb6 {[%emt 0:00:00]}
Kg8 {[%emt 0:00:00]} 35. Ra6 {[%emt 0:00:00]} Kh7 {[%emt 0:00:00]} 36. Rb6 {
[%emt 0:00:00]} Rh5 {[%emt 0:00:00]} 37. Kf4 {[%emt 0:00:00]} Rh4+ {[%emt 0:00:
00]} 38. Kg3 {[%emt 0:00:00]} Rc4 {[%emt 0:00:00]} 39. Rxb5 {[%emt 0:00:00]}
Rxc3+ {[%emt 0:00:00]} 40. Kg4 {[%emt 0:00:00]} Rc1 {[%emt 0:00:00]} 41. Rb6 {
[%emt 0:00:00]} Rg1+ {[%emt 0:00:00]} 42. Kf4 {[%emt 0:00:00]} Rf1+ {[%emt 0:
00:00]} 43. Kg4 {[%emt 0:00:00]} Rf2 {[%emt 0:00:00]} 44. h3 {[%emt 0:00:00]}
Rg2+ {[%emt 0:00:00]} 45. Kf4 {[%emt 0:00:00]} h5 {[%emt 0:00:00]} 46. Ra6 {
[%emt 0:00:00]} h4 {[%emt 0:00:00]} 47. Ra3 {[%emt 0:00:00]} g5+ {[%emt 0:00:
00]} 48. Kf5 {[%emt 0:00:00]} Kh6 {[%emt 0:00:00]} 49. Ra8 {[%emt 0:00:00]}
Rf2+ {[%emt 0:00:00]} 50. Ke4 {[%emt 0:00:00]} Rf4+ {[%emt 0:00:00]} 51. Ke3 {
[%emt 0:00:00]} Rf7 {[%emt 0:00:00]} 52. Rg8 {[%emt 0:00:00]} Rg7 {[%emt 0:00:
00]} 53. Ra8 {[%emt 0:00:00]} Rf7 {[%emt 0:00:00]} 54. Rg8 {[%emt 0:00:00]} Rf4
{[%emt 0:00:00]} 55. Ke2 {[%emt 0:00:00]} Ra4 {[%emt 0:00:00]} 56. Kf3 {
[%emt 0:00:00]} Ra3+ {[%emt 0:00:00]} 57. Kg2 {[%emt 0:00:00]} Ra2+ {[%emt 0:
00:00]} 58. Kg1 {[%emt 0:00:00]} Ra5 {[%emt 0:03:54]} 59. Rb8 {[%emt 0:00:06]}
Kg6 {[%emt 0:00:04]} 60. Rb6+ Kf5 {[%emt 0:00:01]} 61. Rb8 Kf4 {[%emt 0:00:06]}
62. Rb4+ {[%emt 0:00:01]} Ke3 {[%emt 0:00:07]} 63. Rb3+ {[%emt 0:00:02]} Kd4 {
[%emt 0:00:03]} 64. Rb4+ {[%emt 0:00:04]} Kc3 65. Rg4 {[%emt 0:00:03]} Kd3 {
[%emt 0:00:07]} 1/2-1/2